[Event "*** Titled Tuesday Blitz"]
[Site "Chess.com"]
[Date "2021.02.09"]
[Round "5"]
[White "Euwe1234"]
[Black "VladimirBugayev"]
[Result "1-0"]
[WhiteElo "2456"]
[BlackElo "2272"]
[TimeControl "180+1"]
[EndTime "10:57:47 PST"]
[Termination "Euwe1234 won on time"]

1. e4 {[%clk 0:02:32.1]} 1... c6 {[%clk 0:02:58.3]} 2. d4 {[%clk 0:02:29.9]}
2... d5 {[%clk 0:02:58.7]} 3. e5 {[%clk 0:02:30.8]} 3... Bf5 {[%clk 0:02:58.2]}
4. Nf3 {[%clk 0:02:29.5]} 4... e6 {[%clk 0:02:56.9]} 5. Be2 {[%clk 0:02:30.4]}
5... c5 {[%clk 0:02:56.7]} 6. Be3 {[%clk 0:02:30.2]} 6... Qb6 {[%clk 0:02:56.9]}
7. Nc3 {[%clk 0:02:28.2]} 7... Nc6 {[%clk 0:02:56.9]} 8. O-O {[%clk 0:02:15.6]}
8... Qxb2 {[%clk 0:02:55.6]} 9. Nb5 {[%clk 0:02:13.6]} 9... c4 {[%clk
0:02:52.5]} 10. Rb1 {[%clk 0:02:10.2]} 10... Qxc2 {[%clk 0:02:50]} 11. Qxc2
{[%clk 0:02:08.6]} 11... Bxc2 {[%clk 0:02:49.1]} 12. Rb2 {[%clk 0:02:09.5]}
12... Ba4 {[%clk 0:02:23.8]} 13. Nc7+ {[%clk 0:02:06.8]} 13... Kd7 {[%clk
0:02:23.2]} 14. Nxa8 {[%clk 0:02:07.7]} 14... b5 {[%clk 0:02:20.2]} 15. Bd1
{[%clk 0:02:07.3]} 15... Ba3 {[%clk 0:02:18.8]} 16. Rb1 {[%clk 0:02:06.7]} 16...
Bxd1 {[%clk 0:02:17.2]} 17. Rxb5 {[%clk 0:02:05.7]} 17... Bc2 {[%clk 0:01:53]}
18. Rb7+ {[%clk 0:02:04.1]} 18... Kc8 {[%clk 0:01:52.6]} 19. Rc7+ {[%clk
0:02:00.3]} 19... Kb8 {[%clk 0:01:52.6]} 20. Rxc6 {[%clk 0:02:01.2]} 20... Kxa8
{[%clk 0:01:50.2]} 21. Rc8+ {[%clk 0:02:00.8]} 21... Kb7 {[%clk 0:01:49.6]} 22.
Rd8 {[%clk 0:01:58.7]} 22... Be7 {[%clk 0:01:38]} 23. Rd7+ {[%clk 0:01:54.9]}
23... Ka6 {[%clk 0:01:23.5]} 24. Ng5 {[%clk 0:01:50.4]} 24... Bxg5 {[%clk
0:01:19.2]} 25. Bxg5 {[%clk 0:01:51.3]} 25... Nh6 {[%clk 0:01:17.7]} 26. Bxh6
{[%clk 0:01:51.1]} 26... gxh6 {[%clk 0:01:17.8]} 27. Rxf7 {[%clk 0:01:52]} 27...
Bd3 {[%clk 0:01:05]} 28. Rc1 {[%clk 0:01:50.6]} 28... Rb8 {[%clk 0:01:03.8]} 29.
Rf6 {[%clk 0:01:50.7]} 29... Bf5 {[%clk 0:00:57.5]} 30. f3 {[%clk 0:01:48.1]}
30... h5 {[%clk 0:00:57.5]} 31. Rc3 {[%clk 0:01:31.9]} 31... Kb5 {[%clk
0:00:38]} 32. a3 {[%clk 0:01:29.6]} 32... Ka4 {[%clk 0:00:36.5]} 33. Kf2 {[%clk
0:00:59.6]} 33... Rb3 {[%clk 0:00:35.1]} 34. Rc1 {[%clk 0:00:59.5]} 34... c3
{[%clk 0:00:34.5]} 35. Rxf5 {[%clk 0:00:59.1]} 35... exf5 {[%clk 0:00:33.7]} 36.
e6 {[%clk 0:00:59.4]} 36... Kxa3 {[%clk 0:00:20.3]} 37. e7 {[%clk 0:00:58.9]}
37... Rb8 {[%clk 0:00:17.8]} 38. Rxc3+ {[%clk 0:00:58.4]} 38... Kb4 {[%clk
0:00:16.3]} 39. Rc5 {[%clk 0:00:56.5]} 39... Re8 {[%clk 0:00:15.2]} 40. Rxd5
{[%clk 0:00:56.3]} 40... Rxe7 {[%clk 0:00:15.2]} 41. Rxf5 {[%clk 0:00:56.5]}
41... a5 {[%clk 0:00:15.9]} 42. Rf8 {[%clk 0:00:54.2]} 42... Ra7 {[%clk
0:00:14.4]} 43. Rb8+ {[%clk 0:00:54]} 43... Kc4 {[%clk 0:00:14]} 44. Ke3 {[%clk
0:00:52.9]} 44... a4 {[%clk 0:00:14.1]} 45. Rc8+ {[%clk 0:00:51.1]} 45... Kd5
{[%clk 0:00:13.7]} 46. Rc5+ {[%clk 0:00:50.7]} 46... Kd6 {[%clk 0:00:13.4]} 47.
Rc2 {[%clk 0:00:50.9]} 47... a3 {[%clk 0:00:13.8]} 48. Ra2 {[%clk 0:00:50.7]}
48... Kd5 {[%clk 0:00:14.5]} 49. f4 {[%clk 0:00:50.3]} 49... Kc4 {[%clk
0:00:12.8]} 50. f5 {[%clk 0:00:49.1]} 50... Re7+ {[%clk 0:00:09.4]} 51. Kf4
{[%clk 0:00:47.6]} 51... Kb3 {[%clk 0:00:10]} 52. Ra1 {[%clk 0:00:46.5]} 52...
Kb2 {[%clk 0:00:07.1]} 53. Rf1 {[%clk 0:00:44.5]} 53... a2 {[%clk 0:00:06.5]}
54. d5 {[%clk 0:00:44.4]} 54... Rc7 {[%clk 0:00:06.3]} 55. d6 {[%clk 0:00:39.1]}
55... Rc1 {[%clk 0:00:05.4]} 56. Rxc1 {[%clk 0:00:36.7]} 56... Kxc1 {[%clk
0:00:04.8]} 57. d7 {[%clk 0:00:37.6]} 57... a1=Q {[%clk 0:00:04.5]} 58. d8=Q
{[%clk 0:00:38.5]} 58... Qa4+ {[%clk 0:00:03.7]} 59. Ke5 {[%clk 0:00:38]} 59...
Qb5+ {[%clk 0:00:01.6]} 60. Qd5 {[%clk 0:00:37.7]} 1-0

[Event "*** Titled Tuesday Blitz"]
[Site "Chess.com"]
[Date "2021.02.09"]
[Round "5"]
[White "Grandmaster1369"]
[Black "CakeinSpace2002"]
[Result "0-1"]
[WhiteElo "2192"]
[BlackElo "2356"]
[TimeControl "180+1"]
[EndTime "10:57:47 PST"]
[Termination "CakeinSpace2002 won on time"]

1. e4 {[%clk 0:02:59.1]} 1... c5 {[%clk 0:03:00.1]} 2. Nf3 {[%clk 0:02:58.4]}
2... Nc6 {[%clk 0:03:00.4]} 3. Bb5 {[%clk 0:02:58.5]} 3... g6 {[%clk 0:03:00.4]}
4. Bxc6 {[%clk 0:02:58.6]} 4... dxc6 {[%clk 0:03:01.3]} 5. d3 {[%clk 0:02:58.8]}
5... Bg7 {[%clk 0:03:01.4]} 6. h3 {[%clk 0:02:58.1]} 6... Qc7 {[%clk 0:03:01.1]}
7. Nc3 {[%clk 0:02:57.9]} 7... e5 {[%clk 0:03:00.7]} 8. Be3 {[%clk 0:02:58.4]}
8... b6 {[%clk 0:03:00.6]} 9. Qd2 {[%clk 0:02:58.6]} 9... f5 {[%clk 0:03:00.7]}
10. exf5 {[%clk 0:02:55.2]} 10... gxf5 {[%clk 0:03:01.5]} 11. Bg5 {[%clk
0:02:41.6]} 11... Ne7 {[%clk 0:03:00.8]} 12. O-O-O {[%clk 0:02:31.4]} 12... O-O
{[%clk 0:03:00.1]} 13. Bh6 {[%clk 0:02:29.1]} 13... Ng6 {[%clk 0:02:56.2]} 14.
Rhe1 {[%clk 0:02:26.2]} 14... Ba6 {[%clk 0:02:46.2]} 15. Bxg7 {[%clk 0:02:20.9]}
15... Qxg7 {[%clk 0:02:47.1]} 16. h4 {[%clk 0:02:15.2]} 16... Rae8 {[%clk
0:02:42.4]} 17. h5 {[%clk 0:02:12.5]} 17... Nf4 {[%clk 0:02:42.5]} 18. h6 {[%clk
0:01:50.2]} 18... Qf6 {[%clk 0:02:16.4]} 19. g3 {[%clk 0:01:48.8]} 19... Nd5
{[%clk 0:02:14.1]} 20. Nh4 {[%clk 0:01:32.9]} 20... Re6 {[%clk 0:02:05.9]} 21.
Nxd5 {[%clk 0:01:19.5]} 21... cxd5 {[%clk 0:02:05.6]} 22. f4 {[%clk 0:01:16.3]}
22... Qxh6 {[%clk 0:01:44.1]} 23. Rxe5 {[%clk 0:01:07.9]} 23... Rxe5 {[%clk
0:01:40.3]} 24. fxe5 {[%clk 0:01:07.1]} 24... Qxd2+ {[%clk 0:01:41.2]} 25. Kxd2
{[%clk 0:01:06.9]} 25... f4 {[%clk 0:01:36.2]} 26. gxf4 {[%clk 0:00:50.1]} 26...
Rxf4 {[%clk 0:01:37.1]} 27. Rh1 {[%clk 0:00:31.4]} 27... d4 {[%clk 0:01:35.1]}
28. Rg1+ {[%clk 0:00:24.6]} 28... Kf8 {[%clk 0:01:34.1]} 29. Ng2 {[%clk
0:00:21.2]} 29... Rf2+ {[%clk 0:01:30.4]} 30. Kc1 {[%clk 0:00:20]} 30... Bb7
{[%clk 0:01:30]} 31. Ne1 {[%clk 0:00:19.9]} 31... Re2 {[%clk 0:01:26.6]} 32. Kd1
{[%clk 0:00:19.7]} 32... Rxe5 {[%clk 0:01:26.2]} 33. Rf1+ {[%clk 0:00:19.7]}
33... Kg7 {[%clk 0:01:25.8]} 34. Nf3 {[%clk 0:00:20]} 34... Bxf3+ {[%clk
0:01:23.2]} 35. Rxf3 {[%clk 0:00:20.9]} 35... h5 {[%clk 0:01:22.7]} 36. Rg3+
{[%clk 0:00:21.3]} 36... Kh6 {[%clk 0:01:21.7]} 37. Rh3 {[%clk 0:00:21.8]} 37...
Kg5 {[%clk 0:01:20.8]} 38. Kd2 {[%clk 0:00:22.3]} 38... Kg4 {[%clk 0:01:20.7]}
39. Rh1 {[%clk 0:00:23]} 39... h4 {[%clk 0:01:20.5]} 40. c3 {[%clk 0:00:23.5]}
40... h3 {[%clk 0:01:20.3]} 41. b4 {[%clk 0:00:19.4]} 41... Kg3 {[%clk
0:01:19.6]} 42. bxc5 {[%clk 0:00:17.9]} 42... bxc5 {[%clk 0:01:19.5]} 43. cxd4
{[%clk 0:00:17.9]} 43... cxd4 {[%clk 0:01:20.4]} 44. Rg1+ {[%clk 0:00:18.3]}
44... Kf2 {[%clk 0:01:19.5]} 45. Rg8 {[%clk 0:00:18.3]} 45... h2 {[%clk
0:01:14.1]} 46. Rf8+ {[%clk 0:00:18.1]} 46... Kg3 {[%clk 0:01:13.8]} 47. Rh8
{[%clk 0:00:16.6]} 47... Rf5 {[%clk 0:01:08.7]} 48. Ke2 {[%clk 0:00:16.1]} 48...
Rf2+ {[%clk 0:01:05.1]} 49. Ke1 {[%clk 0:00:16.4]} 49... Rxa2 {[%clk 0:01:04.9]}
50. Rg8+ {[%clk 0:00:16]} 50... Kf3 {[%clk 0:01:04.9]} 51. Rh8 {[%clk
0:00:16.4]} 51... h1=Q+ {[%clk 0:01:03.6]} 52. Rxh1 {[%clk 0:00:14.9]} 52...
Ra1+ {[%clk 0:01:02.8]} 53. Kd2 {[%clk 0:00:15.8]} 53... Rxh1 {[%clk 0:01:03.5]}
54. Kc2 {[%clk 0:00:13.8]} 54... Ke3 {[%clk 0:01:03.1]} 55. Kb3 {[%clk
0:00:14.7]} 55... Kxd3 {[%clk 0:01:03]} 56. Ka4 {[%clk 0:00:15.6]} 56... Kc4
{[%clk 0:01:02.3]} 0-1

[Event "*** Titled Tuesday Blitz"]
[Site "Chess.com"]
[Date "2021.02.09"]
[Round "5"]
[White "DenishevM"]
[Black "Yaacovn"]
[Result "0-1"]
[WhiteElo "2594"]
[BlackElo "2847"]
[TimeControl "180+1"]
[EndTime "10:57:53 PST"]
[Termination "Yaacovn won by resignation"]

1. Nf3 {[%clk 0:03:00.9]} 1... Nf6 {[%clk 0:02:58.3]} 2. b3 {[%clk 0:03:00.6]}
2... b6 {[%clk 0:02:58.6]} 3. Bb2 {[%clk 0:03:01.1]} 3... Bb7 {[%clk 0:02:59.2]}
4. c4 {[%clk 0:03:00.5]} 4... g6 {[%clk 0:02:58.8]} 5. g3 {[%clk 0:03:00.5]}
5... Bg7 {[%clk 0:02:59.2]} 6. Bg2 {[%clk 0:03:01.1]} 6... O-O {[%clk
0:02:59.5]} 7. O-O {[%clk 0:03:01.4]} 7... c5 {[%clk 0:03:00]} 8. d4 {[%clk
0:02:58.9]} 8... cxd4 {[%clk 0:02:59.9]} 9. Qxd4 {[%clk 0:02:54.7]} 9... d5
{[%clk 0:02:56.9]} 10. cxd5 {[%clk 0:02:46.6]} 10... Qxd5 {[%clk 0:02:55.5]} 11.
Qxd5 {[%clk 0:02:41.3]} 11... Nxd5 {[%clk 0:02:55.8]} 12. Bxg7 {[%clk
0:02:37.4]} 12... Kxg7 {[%clk 0:02:56.7]} 13. Na3 {[%clk 0:02:29.8]} 13... Nc3
{[%clk 0:02:51.9]} 14. Rfe1 {[%clk 0:02:26.8]} 14... Na6 {[%clk 0:02:51.9]} 15.
Nc4 {[%clk 0:02:22.3]} 15... Nb4 {[%clk 0:02:49.3]} 16. Nd4 {[%clk 0:01:37.1]}
16... Rad8 {[%clk 0:02:19.1]} 17. a3 {[%clk 0:01:25.9]} 17... Bxg2 {[%clk
0:01:36.9]} 18. Kxg2 {[%clk 0:01:21]} 18... Rxd4 {[%clk 0:01:25.3]} 19. axb4
{[%clk 0:01:21]} 19... Nb5 {[%clk 0:01:22.4]} 20. e3 {[%clk 0:01:03.5]} 20...
Rd3 {[%clk 0:01:21]} 21. Ne5 {[%clk 0:00:44.1]} 21... Rxb3 {[%clk 0:01:18.4]}
22. Nc6 {[%clk 0:00:43.9]} 22... Ra8 {[%clk 0:01:15.8]} 23. Red1 {[%clk
0:00:36.1]} 23... Kf6 {[%clk 0:01:03.6]} 24. Rd7 {[%clk 0:00:32.8]} 24... Rc3
{[%clk 0:00:35.8]} 25. Nxe7 {[%clk 0:00:23.3]} 25... Ke6 {[%clk 0:00:28.5]} 26.
Rb7 {[%clk 0:00:22.8]} 26... Rc7 {[%clk 0:00:27.4]} 27. Rxc7 {[%clk 0:00:18.1]}
27... Nxc7 {[%clk 0:00:28.3]} 28. Nc6 {[%clk 0:00:18.7]} 28... Nb5 {[%clk
0:00:24.1]} 29. Rd1 {[%clk 0:00:18]} 29... Rc8 {[%clk 0:00:19.5]} 30. Nd4+
{[%clk 0:00:12.8]} 30... Nxd4 {[%clk 0:00:19.7]} 31. Rxd4 {[%clk 0:00:13.7]}
31... a5 {[%clk 0:00:19.8]} 32. bxa5 {[%clk 0:00:13.4]} 32... bxa5 {[%clk
0:00:20.7]} 33. Ra4 {[%clk 0:00:11.5]} 33... Ra8 {[%clk 0:00:20.8]} 34. Kf3
{[%clk 0:00:11.6]} 34... Kd5 {[%clk 0:00:21.2]} 35. Kf4 {[%clk 0:00:11.8]} 35...
f6 {[%clk 0:00:21.1]} 36. h4 {[%clk 0:00:11.6]} 36... Kc5 {[%clk 0:00:20.7]} 37.
h5 {[%clk 0:00:11.6]} 37... Kb5 {[%clk 0:00:20.9]} 38. Ra1 {[%clk 0:00:09.3]}
38... a4 {[%clk 0:00:21.3]} 39. hxg6 {[%clk 0:00:06.9]} 39... hxg6 {[%clk
0:00:21.1]} 40. g4 {[%clk 0:00:07.6]} 40... Kc4 {[%clk 0:00:16.9]} 41. g5 {[%clk
0:00:07.7]} 41... f5 {[%clk 0:00:17.1]} 42. f3 {[%clk 0:00:06.4]} 42... a3
{[%clk 0:00:14.6]} 43. e4 {[%clk 0:00:06]} 43... fxe4 {[%clk 0:00:15]} 44. fxe4
{[%clk 0:00:06.9]} 44... Ra5 {[%clk 0:00:13.9]} 45. Ra2 {[%clk 0:00:04.5]} 45...
Kd4 {[%clk 0:00:13.5]} 46. Ra1 {[%clk 0:00:03.5]} 46... a2 {[%clk 0:00:12.8]}
47. e5 {[%clk 0:00:03]} 47... Kd5 {[%clk 0:00:12.2]} 48. Rd1+ {[%clk 0:00:02.6]}
48... Ke6 {[%clk 0:00:12.6]} 49. Ra1 {[%clk 0:00:03.5]} 49... Ra4+ {[%clk
0:00:12.3]} 50. Kf3 {[%clk 0:00:04]} 50... Kxe5 {[%clk 0:00:11.3]} 0-1

[Event "*** Titled Tuesday Blitz"]
[Site "Chess.com"]
[Date "2021.02.09"]
[Round "5"]
[White "Pogosian_Manvel"]
[Black "Lion-Al-Messi"]
[Result "1-0"]
[WhiteElo "2401"]
[BlackElo "2539"]
[TimeControl "180+1"]
[EndTime "10:57:54 PST"]
[Termination "Pogosian_Manvel won by checkmate"]

1. d4 {[%clk 0:02:54.5]} 1... d5 {[%clk 0:02:58.3]} 2. c4 {[%clk 0:02:53.6]}
2... c6 {[%clk 0:02:58.8]} 3. Nc3 {[%clk 0:02:52.6]} 3... Nf6 {[%clk 0:02:59.1]}
4. Nf3 {[%clk 0:02:52.2]} 4... dxc4 {[%clk 0:02:59.6]} 5. e4 {[%clk 0:02:51.7]}
5... b5 {[%clk 0:02:59.6]} 6. e5 {[%clk 0:02:51]} 6... Nd5 {[%clk 0:02:58.7]} 7.
a4 {[%clk 0:02:51.6]} 7... e6 {[%clk 0:02:57.2]} 8. axb5 {[%clk 0:02:51.2]} 8...
Nxc3 {[%clk 0:02:57.4]} 9. bxc3 {[%clk 0:02:50.9]} 9... cxb5 {[%clk 0:02:57.8]}
10. Ng5 {[%clk 0:02:48.1]} 10... Bb7 {[%clk 0:02:56.5]} 11. Qh5 {[%clk
0:02:47.6]} 11... g6 {[%clk 0:02:55.6]} 12. Qg4 {[%clk 0:02:45.6]} 12... Be7
{[%clk 0:02:56]} 13. h4 {[%clk 0:02:37.7]} 13... h5 {[%clk 0:02:55.8]} 14. Qg3
{[%clk 0:02:32]} 14... Nd7 {[%clk 0:02:49.6]} 15. Nxe6 {[%clk 0:02:31.4]} 15...
fxe6 {[%clk 0:02:44.4]} 16. Qxg6+ {[%clk 0:02:30.5]} 16... Kf8 {[%clk
0:02:44.5]} 17. Bh6+ {[%clk 0:02:30.4]} 17... Rxh6 {[%clk 0:02:41.9]} 18. Qxh6+
{[%clk 0:02:30.4]} 18... Kg8 {[%clk 0:02:39.3]} 19. Qxe6+ {[%clk 0:02:28.8]}
19... Kg7 {[%clk 0:02:33]} 20. Rh3 {[%clk 0:02:22.6]} 20... Bxh4 {[%clk
0:02:07.4]} 21. Rxh4 {[%clk 0:01:57.3]} 21... Nf8 {[%clk 0:02:07.2]} 22. Qh3
{[%clk 0:01:49.1]} 22... Qg5 {[%clk 0:01:40.6]} 23. Rxh5 {[%clk 0:01:39.5]}
23... Qg6 {[%clk 0:01:40.8]} 24. Rh4 {[%clk 0:01:32]} 24... Qc2 {[%clk
0:01:19.7]} 25. Qg3+ {[%clk 0:01:21.1]} 25... Kf7 {[%clk 0:01:17.9]} 26. Rf4+
{[%clk 0:01:19.6]} 26... Ke8 {[%clk 0:01:17.2]} 27. Be2 {[%clk 0:01:09.9]} 27...
b4 {[%clk 0:00:18.7]} 28. cxb4 {[%clk 0:01:02.5]} 28... a6 {[%clk 0:00:17.4]}
29. Kf1 {[%clk 0:00:47.5]} 29... Qb2 {[%clk 0:00:16.6]} 30. Rd1 {[%clk
0:00:41.3]} 30... Bd5 {[%clk 0:00:16.7]} 31. Bh5+ {[%clk 0:00:40.2]} 31... Kd7
{[%clk 0:00:15.1]} 32. Qg7+ {[%clk 0:00:39]} 32... Kc6 {[%clk 0:00:14.7]} 33.
Rf6+ {[%clk 0:00:38.2]} 33... Kb5 {[%clk 0:00:15]} 34. Rxf8 {[%clk 0:00:27.5]}
34... c3 {[%clk 0:00:09.8]} 35. Be2+ {[%clk 0:00:21]} 35... Ka4 {[%clk
0:00:07.4]} 36. Rxa8 {[%clk 0:00:17.6]} 36... Bxa8 {[%clk 0:00:08.3]} 37. Qa7
{[%clk 0:00:13.1]} 37... Be4 {[%clk 0:00:03.9]} 38. Qxa6+ {[%clk 0:00:12.6]}
38... Kb3 {[%clk 0:00:04]} 39. Qc4+ {[%clk 0:00:12.5]} 39... Ka3 {[%clk
0:00:04.1]} 40. f3 {[%clk 0:00:10.6]} 40... Bc2 {[%clk 0:00:03.2]} 41. Re1
{[%clk 0:00:09.8]} 41... Bb3 {[%clk 0:00:03.4]} 42. Qa6+ {[%clk 0:00:09.9]}
42... Kxb4 {[%clk 0:00:03.7]} 43. Qb5+ {[%clk 0:00:10.1]} 43... Ka3 {[%clk
0:00:04.1]} 44. Qc5+ {[%clk 0:00:09.9]} 44... Ka4 {[%clk 0:00:03.3]} 45. Bb5+
{[%clk 0:00:08.3]} 45... Ka5 {[%clk 0:00:03.6]} 46. Bc6+ {[%clk 0:00:07]} 46...
Ka6 {[%clk 0:00:03.8]} 47. Qb5+ {[%clk 0:00:07.4]} 47... Ka7 {[%clk 0:00:03.7]}
48. Qb7# {[%clk 0:00:08.3]} 1-0

[Event "*** Titled Tuesday Blitz"]
[Site "Chess.com"]
[Date "2021.02.09"]
[Round "5"]
[White "sokidze"]
[Black "JasperBeukema"]
[Result "1-0"]
[WhiteElo "2512"]
[BlackElo "2330"]
[TimeControl "180+1"]
[EndTime "10:57:54 PST"]
[Termination "sokidze won by resignation"]

1. e4 {[%clk 0:03:00.9]} 1... e5 {[%clk 0:02:59.7]} 2. Nf3 {[%clk 0:03:01.1]}
2... Nc6 {[%clk 0:03:00.3]} 3. Bb5 {[%clk 0:03:01.4]} 3... g6 {[%clk 0:03:00.2]}
4. d4 {[%clk 0:02:53.4]} 4... exd4 {[%clk 0:02:56]} 5. c3 {[%clk 0:02:53.2]}
5... Bg7 {[%clk 0:02:51.1]} 6. cxd4 {[%clk 0:02:52.1]} 6... a6 {[%clk
0:02:51.7]} 7. Ba4 {[%clk 0:02:39.3]} 7... b5 {[%clk 0:02:51.4]} 8. Bc2 {[%clk
0:02:39]} 8... d6 {[%clk 0:02:51.1]} 9. O-O {[%clk 0:02:35.4]} 9... Nge7 {[%clk
0:02:50.4]} 10. d5 {[%clk 0:02:30.4]} 10... Nb4 {[%clk 0:02:48]} 11. Bb3 {[%clk
0:02:29.5]} 11... a5 {[%clk 0:02:48.1]} 12. a3 {[%clk 0:02:26.1]} 12... Na6
{[%clk 0:02:46.1]} 13. Nd4 {[%clk 0:02:24]} 13... Bd7 {[%clk 0:02:43.9]} 14. Be3
{[%clk 0:02:05]} 14... O-O {[%clk 0:02:37.6]} 15. Nd2 {[%clk 0:02:04.9]} 15...
Nc5 {[%clk 0:02:33]} 16. Ba2 {[%clk 0:01:39.2]} 16... b4 {[%clk 0:02:33.3]} 17.
axb4 {[%clk 0:01:31.2]} 17... axb4 {[%clk 0:02:33.4]} 18. Qc2 {[%clk 0:01:29.8]}
18... Qb8 {[%clk 0:02:11.5]} 19. Bc4 {[%clk 0:01:25.7]} 19... f5 {[%clk
0:01:37.8]} 20. f3 {[%clk 0:00:58.5]} 20... fxe4 {[%clk 0:00:35.8]} 21. fxe4
{[%clk 0:00:58.3]} 21... Rxa1 {[%clk 0:00:20.5]} 22. Rxa1 {[%clk 0:00:59.2]}
22... g5 {[%clk 0:00:21]} 23. N2f3 {[%clk 0:00:42]} 23... h6 {[%clk 0:00:20.5]}
24. Rf1 {[%clk 0:00:36.3]} 24... Qe8 {[%clk 0:00:17.3]} 25. e5 {[%clk
0:00:31.8]} 25... Nf5 {[%clk 0:00:12]} 26. Bf2 {[%clk 0:00:24]} 26... Nxd4
{[%clk 0:00:03.8]} 27. Bxd4 {[%clk 0:00:23.6]} 27... Bf5 {[%clk 0:00:04.7]} 28.
Qe2 {[%clk 0:00:20.2]} 28... Qh5 {[%clk 0:00:01.7]} 29. Qe3 {[%clk 0:00:13.3]}
29... g4 {[%clk 0:00:01.5]} 30. Nd2 {[%clk 0:00:12.2]} 30... Qg5 {[%clk
0:00:01.9]} 31. Qxg5 {[%clk 0:00:12.2]} 31... hxg5 {[%clk 0:00:02.8]} 32. Bxc5
{[%clk 0:00:11.2]} 32... dxc5 {[%clk 0:00:02.4]} 33. d6+ {[%clk 0:00:11.8]}
33... Kh8 {[%clk 0:00:02.8]} 34. dxc7 {[%clk 0:00:11.8]} 34... Bxe5 {[%clk
0:00:03.1]} 35. Rxf5 {[%clk 0:00:12.2]} 35... Bd4+ {[%clk 0:00:03.6]} 36. Kh1
{[%clk 0:00:09.6]} 36... Rc8 {[%clk 0:00:04.5]} 37. Rf7 {[%clk 0:00:08.7]} 37...
Be5 {[%clk 0:00:05.1]} 38. Be6 {[%clk 0:00:04.6]} 38... Rxc7 {[%clk 0:00:05.3]}
39. Rxc7 {[%clk 0:00:05.2]} 39... Bxc7 {[%clk 0:00:06.2]} 40. Bxg4 {[%clk
0:00:05.5]} 40... Be5 {[%clk 0:00:06.4]} 41. b3 {[%clk 0:00:05.8]} 41... Bf4
{[%clk 0:00:04.6]} 42. Nc4 {[%clk 0:00:06.1]} 42... Be3 {[%clk 0:00:05.5]} 43.
Nxe3 {[%clk 0:00:05.8]} 43... Kg7 {[%clk 0:00:06.4]} 44. Nc4 {[%clk 0:00:06.7]}
44... Kf6 {[%clk 0:00:07.3]} 45. g3 {[%clk 0:00:07.2]} 45... Kg6 {[%clk
0:00:07.4]} 46. Kg2 {[%clk 0:00:08.1]} 46... Kf6 {[%clk 0:00:08.3]} 47. Kf3
{[%clk 0:00:08.8]} 47... Kg6 {[%clk 0:00:09.1]} 48. h4 {[%clk 0:00:09.5]} 48...
Kf6 {[%clk 0:00:10]} 49. h5 {[%clk 0:00:09.5]} 49... Ke7 {[%clk 0:00:09.5]} 50.
Ke4 {[%clk 0:00:10]} 50... Kf6 {[%clk 0:00:10.4]} 51. Kd5 {[%clk 0:00:10.5]} 1-0

[Event "*** Titled Tuesday Blitz"]
[Site "Chess.com"]
[Date "2021.02.09"]
[Round "5"]
[White "RobertoJBM"]
[Black "ChessFighter1975"]
[Result "1-0"]
[WhiteElo "2715"]
[BlackElo "2428"]
[TimeControl "180+1"]
[EndTime "10:57:57 PST"]
[Termination "RobertoJBM won by resignation"]

1. d4 {[%clk 0:03:00.9]} 1... d6 {[%clk 0:03:00.5]} 2. e3 {[%clk 0:03:01.8]}
2... Nf6 {[%clk 0:03:00.8]} 3. Nf3 {[%clk 0:03:01.9]} 3... g6 {[%clk 0:03:01.2]}
4. Be2 {[%clk 0:02:59.9]} 4... Bg7 {[%clk 0:03:01.5]} 5. O-O {[%clk 0:03:00.8]}
5... O-O {[%clk 0:03:02]} 6. c4 {[%clk 0:03:01.7]} 6... Nc6 {[%clk 0:03:01.2]}
7. d5 {[%clk 0:03:01.3]} 7... Nb8 {[%clk 0:03:00.7]} 8. Nc3 {[%clk 0:03:00.9]}
8... c5 {[%clk 0:03:00.7]} 9. e4 {[%clk 0:03:00.2]} 9... a6 {[%clk 0:03:00.1]}
10. Re1 {[%clk 0:02:59.4]} 10... e6 {[%clk 0:02:56.1]} 11. h3 {[%clk 0:02:54.9]}
11... exd5 {[%clk 0:02:55.7]} 12. exd5 {[%clk 0:02:55.2]} 12... Bf5 {[%clk
0:02:52.3]} 13. Bd3 {[%clk 0:02:54.9]} 13... Bxd3 {[%clk 0:02:51.7]} 14. Qxd3
{[%clk 0:02:55.8]} 14... Nbd7 {[%clk 0:02:46.2]} 15. Bf4 {[%clk 0:02:54.4]}
15... Qb6 {[%clk 0:02:43]} 16. Re2 {[%clk 0:02:52.5]} 16... Rfe8 {[%clk
0:02:42.2]} 17. Rae1 {[%clk 0:02:52.2]} 17... Rxe2 {[%clk 0:02:42.2]} 18. Rxe2
{[%clk 0:02:53.1]} 18... Re8 {[%clk 0:02:42.4]} 19. b3 {[%clk 0:02:52.5]} 19...
h6 {[%clk 0:02:14.1]} 20. Ne4 {[%clk 0:02:40.4]} 20... Nxe4 {[%clk 0:02:12.5]}
21. Rxe4 {[%clk 0:02:41.3]} 21... Nf6 {[%clk 0:01:55.2]} 22. Rxe8+ {[%clk
0:02:39]} 22... Nxe8 {[%clk 0:01:56.1]} 23. Qe3 {[%clk 0:02:36.8]} 23... Nf6
{[%clk 0:01:20.2]} 24. Bxh6 {[%clk 0:02:34.2]} 24... Qa5 {[%clk 0:01:06.5]} 25.
Bxg7 {[%clk 0:02:31.8]} 25... Kxg7 {[%clk 0:01:05.9]} 26. Qd2 {[%clk 0:02:26.4]}
26... Qd8 {[%clk 0:00:45.7]} 27. g4 {[%clk 0:02:20]} 27... Kg8 {[%clk
0:00:45.1]} 28. Qe3 {[%clk 0:02:13.9]} 28... b5 {[%clk 0:00:43.3]} 29. Nd2
{[%clk 0:02:09]} 29... Nd7 {[%clk 0:00:39.2]} 30. f4 {[%clk 0:01:59]} 30... Nb6
{[%clk 0:00:20.4]} 31. Kg2 {[%clk 0:01:47.7]} 31... bxc4 {[%clk 0:00:20.3]} 32.
bxc4 {[%clk 0:01:48.6]} 32... Nd7 {[%clk 0:00:19.7]} 33. a3 {[%clk 0:01:45.8]}
33... Nf6 {[%clk 0:00:19.1]} 34. g5 {[%clk 0:01:37.9]} 34... Nh5 {[%clk
0:00:18.6]} 35. Kf3 {[%clk 0:01:35.3]} 35... Qa5 {[%clk 0:00:18.4]} 36. Ne4
{[%clk 0:01:32.4]} 36... Qb6 {[%clk 0:00:18]} 37. Nf6+ {[%clk 0:01:29.2]} 37...
Nxf6 {[%clk 0:00:17.2]} 38. gxf6 {[%clk 0:01:30.1]} 38... Kh7 {[%clk 0:00:13.9]}
39. Qe7 {[%clk 0:00:40.6]} 39... Qb3+ {[%clk 0:00:12.8]} 40. Kg4 {[%clk
0:00:39.7]} 40... Qd1+ {[%clk 0:00:13.1]} 41. Kh4 {[%clk 0:00:37.3]} 41... g5+
{[%clk 0:00:09.5]} 42. fxg5 {[%clk 0:00:25.9]} 42... Qd4+ {[%clk 0:00:09.7]} 43.
Kg3 {[%clk 0:00:21.6]} 43... Qd3+ {[%clk 0:00:09]} 44. Kf4 {[%clk 0:00:20]}
44... Qxc4+ {[%clk 0:00:09]} 45. Qe4+ {[%clk 0:00:18.9]} 45... Qxe4+ {[%clk
0:00:08.5]} 46. Kxe4 {[%clk 0:00:19.8]} 46... Kg6 {[%clk 0:00:09.2]} 47. h4
{[%clk 0:00:19.8]} 47... Kh5 {[%clk 0:00:09.1]} 48. Kf4 {[%clk 0:00:18.2]} 48...
Kg6 {[%clk 0:00:08.8]} 49. Kg4 {[%clk 0:00:18.6]} 49... Kh7 {[%clk 0:00:08.8]}
50. h5 {[%clk 0:00:19.5]} 50... Kg8 {[%clk 0:00:09.2]} 51. Kf5 {[%clk 0:00:20]}
51... Kh7 {[%clk 0:00:09.6]} 52. g6+ {[%clk 0:00:20.2]} 52... fxg6+ {[%clk
0:00:10.3]} 53. hxg6+ {[%clk 0:00:21.1]} 53... Kg8 {[%clk 0:00:11.1]} 54. f7+
{[%clk 0:00:21.1]} 54... Kf8 {[%clk 0:00:12]} 55. Kf6 {[%clk 0:00:20.7]} 1-0